bitfinex-derivatives/quotes_ETHF0:USTF0_20250828
["timestamp","ask_amount","ask_price","bid_price","bid_amount"]
[1756389675398,0.435,4572.6,4572.5,20.45014]
[1756389675602,0.435,4572.4,4572.3,31.502]
[1756389675802,3.6428,4572.4,4572.3,31.502]
[1756389676006,3.6428,4572.4,4572.3,31.02479]
[1756389676199,7.6428,4572.4,4572.3,50.50420401]
[1756389676403,7.6428,4572.4,4571.5,1.96891195]
[1756389676404,0.82865,4572.2,4572.1,20.32633]
[1756389676599,0.82865,4572.2,4572.1,19.5829]
[1756389676806,0.39365,4572.2,4572.1,19.06958]
[1756389677198,0.39365,4572.2,4571.4,1.96891195]
[1756389677199,0.39371,4571.5,4571.4,1.96891195]
[1756389677404,0.82871,4571.5,4571.4,20.982]
[1756389677608,0.39371,4571.5,4571.4,20.982]
[1756389678212,0.39373,4571.3,4571.2,5.17671195]
[1756389678410,0.39373,4571.3,4571.2,26.15871195]
[1756389678610,0.39373,4571.3,4571.2,22.95091195]
[1756389678910,0.82873,4571.3,4571.2,22.55768641]
[1756389679515,4.03653,4571.3,4571.2,22.04745641]
[1756389679807,4.03653,4571.3,4571.2,20.5371]
[1756389680209,0.3938,4570.5,4570.4,1.52579195]
[1756389680420,0.3938,4570.5,4569.6,2.75664641]
[1756389680421,0.39387,4569.7,4569.6,2.75664641]
[1756389680619,0.98463,4569.9,4569.6,20.981]
[1756389680914,0.82887,4569.7,4569.6,20.981]
[1756389681311,0.39387,4569.7,4569.6,20.981]
[1756389682115,0.39396,4568.6,4568.5,3.2078]
[1756389682314,0.39396,4568.6,4568.5,24.1868]
[1756389682609,0.39396,4568.6,4568.5,20.979]
[1756389682814,0.39401,4568.1,4568.0,3.2078]
[1756389683009,0.39401,4568.1,4568.0,24.1878]
[1756389683813,1.41982,4569.1,4568.0,24.1878]
[1756389683814,0.435,4569.1,4568.0,24.1878]
[1756389684113,1.96889,4570.8,4568.5,3.60176]
[1756389684114,0.98468,4569.7,4568.5,3.60176]
[1756389684312,0.98471,4569.6,4568.6,20.98]
[1756389684608,3.2078,4569.9,4568.6,20.98]
[1756389684609,0.39393,4569.0,4568.6,20.98]
[1756389684814,0.39392,4569.1,4568.6,20.98]
[1756389685216,0.39392,4569.1,4568.6,21.37396]
[1756389685403,0.39393,4569.0,4568.6,21.37396]
[1756389685607,0.435,4569.8,4568.6,20.98]
[1756389685806,0.3939,4569.3,4568.9,0.39393]
[1756389686002,0.98461,4570.0,4569.0,21.37492]
[1756389686207,0.39384,4570.0,4569.7,3.2078]
[1756389686410,0.39385,4570.0,4569.8,20.981]
[1756389686719,0.39385,4570.0,4568.7,2.75664641]
[1756389686720,0.39388,4569.6,4569.5,31.513]
[1756389686912,0.82888,4569.6,4569.5,20.981]
[1756389687216,4.03668,4569.6,4569.5,20.981]
[1756389687914,3.60168,4569.6,4569.5,20.981]
[1756389690116,0.39388,4569.6,4569.5,22.55732485]
[1756389690411,3.2078,4570.3,4569.5,22.55732485]
[1756389690619,3.2078,4570.3,4569.9,1.57632485]
[1756389690814,3.2078,4570.8,4570.0,52.496]
[1756389691011,3.2078,4571.4,4570.7,3.2078]
[1756389691216,3.2078,4571.4,4571.0,1.57602077]
[1756389691416,3.2078,4572.0,4571.0,1.97040607]
[1756389691716,3.2078,4572.0,4571.6,1.57556982]
[1756389692017,3.2078,4572.5,4571.8,1.57556982]
[1756389692211,0.435,4572.4,4571.8,1.57556982]
[1756389692614,0.435,4572.4,4571.9,1.57556982]
[1756389693013,3.2078,4572.5,4572.1,1.57556982]
[1756389693327,3.2078,4572.5,4572.2,20.977]
[1756389693910,0.435,4572.4,4572.3,1.57539913]
[1756389694114,0.435,4572.4,4572.3,20.976]
[1756389694421,0.435,4572.3,4572.2,20.975]
[1756389694614,0.435,4572.3,4571.8,1.57539913]
[1756389694615,0.435,4572.1,4572.0,20.974]
[1756389695218,4.0,4572.1,4572.0,20.974]
[1756389695417,4.435,4572.1,4572.0,20.974]
[1756389695819,0.435,4572.1,4572.0,20.974]
[1756389696024,0.435,4572.1,4571.7,31.517]
[1756389696221,5.41796514,4573.8,4571.7,31.517]
[1756389696222,0.4651,4571.9,4571.7,31.517]
[1756389696423,3.2078,4572.0,4571.8,20.972]
[1756389696620,3.2078,4572.0,4571.9,20.971]
[1756389697025,3.6729,4572.0,4571.9,20.971]
[1756389698623,3.6729,4572.0,4571.9,20.969]
[1756389698824,3.2078,4572.0,4571.9,20.969]
[1756389699027,3.2078,4572.0,4571.9,21.0288]
[1756389699219,0.4651,4571.9,4571.7,31.517]
[1756389699421,3.2078,4572.0,4571.8,20.968]
[1756389699625,3.2078,4572.0,4571.9,0.0598]
[1756389700018,3.2078,4572.0,4571.8,20.968]
[1756389700019,0.4651,4571.9,4571.8,20.968]
[1756389701429,3.2078,4572.0,4571.8,21.0278]
[1756389701727,3.2078,4572.0,4571.8,20.968]
[1756389702129,0.4651,4571.9,4571.7,33.09239913]
[1756389702326,3.2078,4572.0,4571.9,20.965]
[1756389702522,3.2078,4572.0,4571.7,31.517]
[1756389702718,3.2078,4572.0,4571.8,20.964]
[1756389702923,3.2078,4572.0,4571.9,0.0598]
[1756389703326,3.2078,4572.5,4571.8,22.53939913]
[1756389703625,3.2078,4573.0,4572.4,0.0598]
[1756389703823,0.4651,4573.5,4572.2,3.2078]
[1756389703824,0.4651,4573.5,4572.8,4.84248311]
[1756389704020,3.2078,4573.6,4573.0,1.57488311]
[1756389704221,0.4651,4574.0,4573.5,1.57488311]
[1756389704420,3.2078,4574.7,4573.5,1.57488311]
[1756389704727,3.2078,4574.2,4573.6,16.533]
[1756389704921,0.4651,4574.0,4573.3,4.78268311]
[1756389705127,3.2078,4574.2,4573.4,17.93]
[1756389705321,0.4949228,4574.1,4573.4,17.93]
[1756389705629,0.4651,4574.0,4573.4,17.93]
[1756389706129,0.4651,4574.0,4573.4,19.56468311]
[1756389706531,0.4651,4574.0,4573.4,17.9898]
[1756389706827,0.4651,4574.0,4573.4,17.93]
[1756389707425,0.4651,4574.0,4573.5,0.0598]
[1756389707631,0.4651,4574.0,4573.4,17.93]
[1756389707632,0.4651,4574.0,4573.4,1.57488311]
[1756389707819,0.4651,4573.9,4573.4,1.57488311]
[1756389708019,3.2078,4574.2,4573.5,7.878]
[1756389708229,0.4651,4574.1,4573.5,7.878]
[1756389708425,0.4651,4574.1,4573.5,7.9378]
[1756389708626,0.4651,4574.1,4573.5,8.11608452]
[1756389708828,0.4651,4574.1,4573.5,7.9378]
[1756389709133,0.4651,4574.1,4573.5,0.0598]
[1756389709432,0.4651,4574.1,4573.6,6.241]
[1756389709632,0.4651,4574.1,4573.7,11.882]
[1756389709832,3.2078,4574.2,4573.7,11.882]
[1756389710025,3.2078,4574.2,4573.3,4.95709226]
[1756389710222,0.4651,4574.1,4573.5,0.0598]
[1756389710630,3.2078,4574.2,4573.5,0.0598]
[1756389711130,3.2078,4574.2,4573.5,1.63468311]
[1756389711631,0.4651,4574.6,4573.6,0.0598]
[1756389711837,0.48918634,4574.5,4573.6,0.0598]
[1756389712026,0.48918634,4574.4,4573.6,0.0598]
[1756389712231,0.4651,4574.3,4573.6,0.0598]
[1756389712735,0.4651,4574.3,4573.6,0.45333]
[1756389713029,0.4651,4574.3,4573.6,1.57488311]
[1756389713326,0.4651,4574.3,4573.7,0.0598]
[1756389713735,0.4651,4574.3,4573.7,1.63468311]
[1756389714033,3.2078,4574.1,4573.7,7.807]
[1756389714628,3.2078,4574.1,4573.3,3.38220915]
[1756389714629,0.4651,4574.0,4573.6,14.032]
[1756389714828,0.4651,4574.0,4573.3,3.2078]
[1756389715028,3.2078,4574.1,4573.3,3.2078]
[1756389715029,3.2078,4574.1,4573.4,12.446]
[1756389715229,0.4651,4573.9,4573.4,12.446]
[1756389715528,3.2078,4574.1,4573.5,0.0598]
[1756389715721,3.2078,4574.1,4573.6,2.02821311]
[1756389715921,3.2078,4574.7,4573.9,3.2078]
[1756389716130,3.2078,4574.7,4574.1,1.57434345]
[1756389716325,0.4651,4575.2,4574.5,0.0598]
[1756389716530,3.2078,4575.3,4574.7,1.57434345]
[1756389716836,0.4651,4575.2,4574.8,1.57434345]
[1756389717027,0.4651,4575.2,4574.7,1.63414345]
[1756389717337,3.2078,4575.3,4574.8,15.491]
[1756389717641,0.4651,4575.2,4574.6,1.57434345]
[1756389717833,0.4651,4575.2,4574.7,20.939]
[1756389718033,3.2078,4575.3,4574.7,20.939]
[1756389718430,0.4651,4575.2,4574.6,1.57434345]
[1756389718733,0.4651,4575.2,4574.7,20.937]
[1756389718933,3.6729,4575.3,4574.7,20.937]
[1756389719632,3.6729,4575.3,4574.8,20.936]
[1756389719833,3.2078,4575.3,4574.9,0.39342]
[1756389720036,3.2078,4575.8,4575.0,1.63414345]
[1756389720231,3.2078,4575.8,4575.1,0.0598]
[1756389720929,3.2078,4575.8,4575.0,1.57434345]
[1756389721136,3.2078,4575.8,4575.1,11.232]
[1756389721325,0.4651,4575.7,4575.1,11.232]
[1756389721934,3.2078,4575.8,4575.2,0.0598]
[1756389722334,0.4651,4576.1,4575.5,3.2078]
[1756389722634,0.4651,4576.1,4575.5,4.78214345]
[1756389722834,3.2078,4576.3,4575.5,4.78214345]
[1756389722835,3.2078,4576.3,4575.7,1.57434345]
[1756389723032,1.94620643,4578.5,4575.5,3.2078]
[1756389723033,3.6729,4576.8,4575.9,0.0598]
[1756389723229,0.4651,4576.6,4575.9,0.0598]
[1756389723435,0.4651,4576.6,4576.0,5.8]
[1756389723938,0.4651,4576.6,4576.2,1.57434345]
[1756389724131,3.2078,4576.8,4576.3,0.0598]
[1756389724332,3.2078,4576.8,4576.4,0.0598]
[1756389724532,0.4651,4577.1,4576.4,0.0598]
[1756389724733,0.4651,4577.1,4576.6,3.2078]
[1756389724938,0.4651,4577.4,4576.7,0.0598]
[1756389725146,0.4651,4577.4,4576.8,1.57434345]
[1756389726229,3.2078,4577.8,4576.9,1.63244345]
[1756389726430,3.2078,4577.8,4577.3,1.63244345]
[1756389726635,3.2078,4578.3,4577.5,1.63244345]
[1756389726943,0.4565,4578.5,4577.8,3.2078]
[1756389727241,3.2078,4578.8,4578.2,0.0581]
[1756389727434,0.4565,4578.7,4578.4,0.0581]
[1756389727629,3.2078,4578.8,4578.4,0.0581]
[1756389727835,3.2078,4578.8,4578.4,1.57434345]
[1756389728235,3.2078,4578.8,4578.2,1.57434345]
[1756389728436,0.4565,4578.7,4578.3,20.919]
[1756389728934,0.4565,4578.7,4578.3,20.917]
[1756389729244,0.4565,4578.5,4577.9,20.916]
[1756389729434,3.2078,4578.1,4577.8,20.915]
[1756389729744,0.4565,4578.0,4577.3,33.06234345]
[1756389730037,0.4565,4577.4,4577.3,31.488]
[1756389730540,3.6643,4577.4,4577.3,31.488]
[1756389730935,0.4565,4577.4,4577.3,31.488]
[1756389731240,3.2078,4578.0,4577.7,0.0546]
[1756389731439,0.4565,4578.7,4577.7,0.0546]
[1756389731440,3.6643,4578.7,4577.9,2.02131509]
[1756389731641,0.1,4580.2,4578.1,1.96665377]
[1756389731841,3.2078,4579.2,4578.6,1.57351377]
[1756389732040,3.2078,4579.2,4578.6,22.48351377]
[1756389732245,3.2078,4579.2,4578.6,20.9646]
[1756389732655,3.2078,4579.2,4578.5,1.57351377]
[1756389732845,0.4565,4579.0,4578.5,20.909]
[1756389733144,0.4565,4579.0,4577.9,2.02500607]
[1756389733145,0.4565,4578.6,4578.4,20.908]
[1756389733334,3.2078,4578.7,4577.8,1.57351377]
[1756389733535,3.2078,4578.2,4577.9,20.906]
[1756389733739,0.4565,4578.1,4577.9,20.906]
[1756389733941,0.4565,4578.1,4577.6,1.57351377]
[1756389734135,0.4565,4578.9,4577.8,3.2624]
[1756389734337,0.4565,4578.9,4577.7,22.47951377]
[1756389734338,0.4565,4578.7,4578.0,1.57351377]
[1756389734542,0.1,4580.2,4578.0,1.57351377]
[1756389734543,3.2078,4578.9,4578.1,20.904]
[1756389734742,3.2078,4578.4,4578.1,20.904]
[1756389735046,0.4565,4578.3,4577.9,1.57351377]
[1756389735239,3.2078,4578.4,4578.0,20.904]
[1756389735438,0.4565,4578.3,4577.6,1.57351377]
[1756389735634,3.2078,4578.4,4577.6,1.57351377]
[1756389735836,3.2078,4578.4,4577.3,34.6958]
[1756389735837,0.4565,4578.2,4577.3,36.26931377]
[1756389736040,0.48098686,4578.3,4577.1,1.57351377]
[1756389736041,3.2078,4577.8,4577.1,1.57351377]
[1756389736241,0.4565,4577.6,4576.9,22.47551377]
[1756389736450,0.4808963,4577.5,4576.9,20.902]
[1756389736748,3.2078,4577.3,4576.5,1.57351377]
[1756389736946,0.4565,4577.2,4576.5,22.47451377]
[1756389737245,0.4565,4577.1,4576.5,20.901]
[1756389737448,3.2078,4577.3,4575.9,1.97040607]
[1756389737449,3.2078,4576.7,4576.0,1.57351377]
[1756389738049,0.4565,4576.5,4575.9,20.9]
[1756389738250,0.4565,4576.5,4575.9,20.9546]
[1756389738447,0.4565,4577.2,4576.2,4.78131377]
[1756389738647,0.49069886,4577.1,4576.3,1.62811377]
[1756389738840,0.4565,4577.2,4576.3,1.62811377]
[1756389739041,0.4565,4577.2,4576.5,1.57351377]
[1756389739241,0.4565,4577.2,4576.6,20.898]
[1756389739441,3.2078,4577.1,4576.6,20.898]
[1756389739640,0.4565,4577.0,4576.6,20.898]
[1756389739944,3.2078,4577.1,4576.7,0.0546]
[1756389740157,3.2078,4577.6,4576.7,0.0546]
[1756389740450,3.2078,4577.6,4570.1,11.0276781]
[1756389740451,3.2078,4577.1,4576.5,1.57351377]
[1756389740640,0.47849223,4577.0,4576.5,20.897]
[1756389740837,3.2078,4576.6,4575.7,22.47051377]
[1756389741048,0.4565,4576.0,4575.5,1.57351377]
[1756389741246,3.2078,4575.6,4574.8,1.57351377]
[1756389741436,3.817,4576.8,4574.5,1.62811377]
[1756389741437,3.2078,4575.0,4574.5,1.62811377]
[1756389741643,3.2078,4575.0,4574.4,20.896]
[1756389741644,0.4565,4574.9,4574.4,20.896]
[1756389741838,3.2078,4575.0,4574.4,20.896]
[1756389742049,0.4565,4574.8,4574.4,20.896]
[1756389742350,3.2078,4575.0,4574.4,20.896]
[1756389742550,0.47827236,4574.9,4574.4,20.896]
[1756389742754,3.2078,4575.0,4574.4,20.896]
[1756389742953,0.4565,4574.8,4574.0,1.57351377]
[1756389743249,0.4565,4574.4,4573.5,12.797]
[1756389743440,3.2078,4574.5,4573.5,12.797]
[1756389743441,0.4565,4574.2,4573.5,12.797]
[1756389743640,3.2078,4574.5,4573.5,14.37051377]
[1756389743845,3.2078,4574.5,4573.7,2.02163377]
[1756389744046,0.4565,4575.3,4574.1,0.0546]
[1756389744246,3.2078,4574.9,4574.2,22.46851377]
[1756389744745,3.2078,4575.4,4574.7,1.62811377]
[1756389744947,1.94620643,4577.2,4574.6,0.39344]
[1756389744948,0.4565,4576.4,4575.7,0.39334]
[1756389745254,0.4565,4576.9,4576.1,1.57351377]
[1756389745442,0.4565,4576.6,4576.0,1.57351377]
[1756389745641,0.48387826,4576.5,4575.8,1.57351377]
[1756389745847,0.4565,4576.3,4575.7,25.67631377]
[1756389746056,0.4565,4576.1,4575.7,20.895]
[1756389746247,3.2078,4576.5,4575.7,20.895]
[1756389746547,0.4565,4576.3,4575.7,20.895]
[1756389746751,0.48380817,4576.2,4575.7,20.895]
[1756389746953,0.4565,4576.4,4575.7,20.895]
[1756389747155,0.48379789,4576.3,4575.7,20.895]
[1756389747351,0.48379789,4576.2,4575.7,20.895]
[1756389747553,0.4565,4576.4,4575.7,20.895]
[1756389747752,0.48379783,4576.3,4575.7,20.895]
[1756389748057,0.4565,4576.4,4574.9,1.97040607]
[1756389748058,3.2078,4576.0,4575.1,1.57351377]
[1756389748254,0.4565,4575.8,4575.1,1.57351377]
[1756389748448,0.4565,4575.4,4574.6,1.57351377]
[1756389748653,3.2078,4575.5,4574.3,1.57351377]
[1756389748654,0.4565,4575.2,4574.3,1.57351377]
[1756389748854,0.4565,4575.2,4574.4,22.46551377]
[1756389749056,0.4565,4575.2,4574.5,1.62811377]
[1756389749454,3.2078,4575.5,4574.5,0.0546]
[1756389749754,0.49181871,4575.4,4574.6,1.96695377]
[1756389750058,3.2078,4575.5,4574.9,0.0546]
[1756389750356,3.2078,4575.5,4574.9,2.02153377]
[1756389750553,0.4565,4575.8,4575.1,0.3934]
[1756389750751,3.2078,4576.0,4575.2,0.0546]
[1756389751055,3.2078,4576.0,4575.2,1.62811377]
[1756389751255,3.2078,4576.0,4575.2,4.78131377]
[1756389751455,3.2078,4576.0,4575.7,0.0546]
[1756389751652,3.2078,4576.0,4575.9,0.0546]
[1756389752054,3.2078,4576.5,4575.9,4.0546]
[1756389752258,3.2078,4576.5,4575.9,0.0546]
[1756389752459,3.6643,4576.5,4575.9,1.57351377]
[1756389752756,3.2078,4576.5,4576.0,20.89]
[1756389752952,0.4565,4576.4,4575.9,1.57351377]
[1756389753156,0.4565,4575.9,4574.9,14.33151377]
[1756389753352,0.4565,4575.7,4575.0,52.373]
[1756389753755,3.2078,4576.0,4575.4,3.2078]
[1756389754062,3.2078,4576.5,4575.7,0.0546]
[1756389754263,3.2078,4576.5,4575.8,20.889]
[1756389754461,3.2078,4576.5,4575.9,0.0546]
[1756389754851,3.2078,4576.5,4576.0,20.888]
[1756389755057,3.2078,4576.5,4575.3,1.97040607]
[1756389755058,0.4565,4576.3,4575.6,1.57351377]
[1756389755267,3.2078,4575.7,4574.9,22.46151377]
[1756389755575,3.6643,4575.1,4574.9,20.887]
[1756389755769,3.6643,4575.1,4574.4,1.57351377]
[1756389755962,3.6643,4575.1,4574.3,4.78131377]
[1756389756162,3.6643,4575.1,4574.4,17.97551377]
[1756389756770,3.6643,4575.1,4574.5,0.0408]
[1756389756972,3.2078,4575.1,4574.5,0.0408]
[1756389757174,0.45432663,4575.5,4574.5,0.43425]
[1756389757374,0.49391322,4575.4,4575.0,0.0408]
[1756389757670,0.00352663,4575.5,4575.3,0.0408]
[1756389757878,0.00352663,4575.5,4575.4,1.61431377]
[1756389758175,3.2078,4576.2,4575.4,3.2078]
[1756389758474,3.2078,4576.2,4576.1,0.0372]
[1756389758877,3.6586,4576.2,4576.1,20.885]
[1756389760273,3.6586,4576.2,4576.0,1.57415417]
[1756389760581,3.2078,4576.2,4576.1,20.9202]
[1756389761076,3.2078,4576.9,4576.1,29.07409]
[1756389761271,3.6586,4578.5,4576.8,3.2078]
[1756389761469,3.2078,4578.5,4578.1,0.39314]
[1756389761670,3.2078,4579.2,4578.2,9.93]
[1756389761873,3.2078,4579.2,4578.8,1.61047124]
[1756389762068,3.2078,4579.2,4579.0,0.0372]
[1756389762269,0.4508,4579.1,4578.8,1.57327124]
[1756389762669,3.2078,4579.2,4578.7,15.133]
[1756389762977,0.4508,4579.1,4578.7,15.133]
[1756389763178,3.2078,4579.2,4578.7,15.133]
[1756389763375,0.4508,4579.1,4578.7,15.133]
[1756389763579,3.2078,4579.2,4578.7,15.133]
[1756389763881,0.48927571,4579.1,4578.3,20.879]
[1756389764081,0.4508,4578.9,4578.3,20.879]
[1756389764479,0.4508,4578.9,4578.3,22.45227124]
[1756389764774,0.4508,4579.1,4578.7,1.57327124]
[1756389764968,0.4508,4579.1,4578.4,17.84627124]
[1756389765276,0.4508,4578.9,4578.3,1.57327124]
[1756389765480,0.4508,4578.6,4578.0,20.874]
[1756389766378,3.2078,4578.7,4578.0,20.874]
[1756389766585,0.93988372,4578.6,4577.9,20.872]
[1756389766775,0.48908372,4578.5,4577.9,20.872]
[1756389767179,0.48908372,4578.5,4577.8,33.05627124]
[1756389767180,0.4508,4578.6,4578.0,20.872]
[1756389767481,3.2078,4578.7,4578.0,20.871]
[1756389767482,0.4508,4578.4,4578.0,20.871]
[1756389767774,3.2078,4578.7,4577.8,33.05627124]
[1756389767775,0.4865363,4578.3,4577.8,31.483]
[1756389768081,0.4508,4578.0,4577.8,31.483]
[1756389768276,3.2078,4578.2,4577.7,20.87]
[1756389768482,0.4508,4578.0,4577.3,1.57327124]
[1756389768671,0.4508,4578.1,4577.2,1.57327124]
[1756389768875,0.4508,4577.9,4577.2,1.57327124]
[1756389769381,0.4508,4577.9,4577.3,0.0372]
[1756389769575,0.4508,4577.9,4577.3,1.61047124]
[1756389770177,3.2078,4578.2,4577.2,1.57327124]
[1756389770371,0.4508,4578.0,4577.4,20.868]
[1756389770674,3.2078,4578.2,4577.5,0.0372]
[1756389770873,0.48630735,4578.1,4577.5,0.0372]
[1756389771076,3.2078,4578.2,4577.6,20.866]
[1756389771371,0.4508,4578.6,4577.8,0.0372]
[1756389771575,0.48365016,4578.5,4577.8,0.0372]
[1756389771877,0.4508,4578.6,4577.8,0.0372]
[1756389772177,3.2078,4578.7,4577.9,1.61047124]
[1756389772380,0.48363731,4578.6,4578.0,0.0372]
[1756389772677,3.2078,4578.7,4578.3,0.0372]
[1756389772984,3.2078,4579.2,4578.4,22.43827124]
[1756389773183,0.48364918,4579.1,4578.4,22.43827124]
[1756389773375,3.2078,4579.2,4578.5,0.0372]
[1756389773577,0.48365005,4579.1,4578.5,0.0372]
[1756389773771,3.2078,4579.2,4578.5,0.43031]
[1756389774074,3.2078,4579.2,4579.0,0.0372]
[1756389774270,3.2078,4579.2,4579.1,20.9002]
[1756389774478,0.4508,4579.6,4579.2,0.0372]
[1756389774685,0.1,4580.2,4579.2,0.0372]
[1756389774686,0.4508,4580.1,4579.2,0.0372]
[1756389774881,0.48368729,4580.0,4579.4,0.39303]
[1756389775080,0.1,4580.2,4579.5,1.61047124]
[1756389775380,0.1,4580.2,4580.1,1.61047124]
[1756389775583,0.1,4580.2,4580.1,22.47147124]
[1756389776180,0.1,4580.2,4580.1,1.61047124]
[1756389776378,0.5508,4580.2,4580.0,1.57327124]
[1756389776578,0.1,4580.2,4580.1,8.42]
[1756389776982,0.1,4580.2,4580.1,8.4572]
[1756389777171,0.1,4580.2,4580.1,12.4572]
[1756389777172,0.0628,4580.2,4580.1,12.4572]
[1756389777373,0.4508,4581.4,4580.5,0.39294]
[1756389777576,3.2078,4581.8,4580.9,1.57236302]
[1756389777781,3.2078,4582.4,4581.7,1.57236302]
[1756389778183,3.2078,4582.4,4581.8,17.107]
[1756389778486,0.4508,4582.3,4581.9,20.855]
[1756389778681,0.4839095,4582.2,4581.1,1.57236302]
[1756389778879,0.4839095,4582.2,4580.6,5.96444641]
[1756389778880,3.2078,4581.7,4581.2,20.855]
[1756389779075,0.4508,4582.1,4581.3,1.57236302]
[1756389779378,0.48392305,4582.0,4581.3,1.57236302]
[1756389779579,3.2078,4582.2,4581.7,1.57236302]
[1756389779981,3.2078,4582.2,4581.8,1.57236302]
[1756389780281,0.4508,4582.1,4581.9,1.57236302]
[1756389780478,0.4508,4582.1,4581.8,1.57236302]
[1756389780787,3.2078,4582.2,4581.7,20.85]
[1756389781181,3.2078,4582.2,4581.9,1.57236302]
[1756389781382,3.2078,4582.2,4581.7,1.57236302]
[1756389781383,0.4508,4582.1,4581.7,1.57236302]
[1756389781578,0.4508,4581.9,4581.4,33.03536302]
[1756389781782,0.4508,4581.5,4581.4,31.463]
[1756389781987,0.4508,4581.5,4581.4,33.03536302]
[1756389782482,3.6586,4582.1,4581.4,31.463]
[1756389782687,3.2078,4582.1,4581.8,1.57216598]
[1756389782986,3.2078,4582.1,4581.9,20.846]
[1756389783383,0.4508,4582.6,4581.9,20.846]
[1756389783384,3.6586,4582.6,4581.9,20.846]
[1756389783583,0.4508,4584.1,4582.3,0.98196]
[1756389783881,1.94620643,4584.6,4582.1,1.57216598]
[1756389783882,0.4508,4584.5,4583.2,3.2078]
[1756389784083,3.2078,4584.1,4583.6,1.57123995]
[1756389784279,0.4508,4584.0,4583.7,9.362]
[1756389784484,3.2078,4584.1,4583.7,17.795]
[1756389784682,3.6586,4584.1,4583.8,20.843]
[1756389784877,0.4508,4584.0,4583.9,20.843]
[1756389785082,0.4508,4584.0,4583.8,20.843]
[1756389785384,3.2078,4584.1,4583.7,20.843]
[1756389785689,4.68837569,4584.0,4582.7,1.57123995]
[1756389785892,0.4489,4582.8,4582.6,1.57123995]
[1756389786087,3.2078,4582.9,4582.6,1.57123995]
[1756389786382,0.91901887,4582.8,4582.1,1.57123995]
[1756389786594,3.2078,4582.3,4582.2,12.619]
[1756389786887,3.2078,4582.9,4582.2,12.619]
[1756389787182,3.6567,4583.4,4582.4,1.57123995]
[1756389787385,3.2078,4583.4,4582.7,1.57123995]
[1756389787583,3.2078,4583.4,4583.1,1.57123995]
[1756389787783,3.2078,4583.4,4583.2,20.837]
[1756389788093,0.4489,4583.3,4583.0,1.57123995]
[1756389788282,3.2078,4583.4,4583.3,20.837]
[1756389788583,3.2078,4583.4,4583.0,1.57123995]
[1756389788784,0.4489,4583.3,4582.9,1.57123995]
[1756389788991,0.4489,4583.1,4582.3,17.91223995]
[1756389789188,3.2078,4582.9,4582.3,1.57123995]
[1756389789384,0.4489,4582.8,4582.1,4.77903995]
[1756389789584,0.4489,4582.6,4581.9,1.57123995]
[1756389789786,0.4489,4582.8,4582.0,1.57123995]
[1756389789988,0.46988132,4582.7,4582.0,1.57123995]
[1756389790187,0.4489,4582.8,4582.0,1.57123995]
[1756389790485,0.46988068,4582.7,4582.0,1.57123995]
[1756389790685,0.4489,4582.8,4582.1,1.57123995]
[1756389790890,3.2078,4582.9,4582.1,1.57123995]
[1756389791094,3.2078,4582.9,4582.3,1.57123995]
[1756389791284,0.4489,4582.8,4582.3,1.57123995]
[1756389791484,0.4489,4582.8,4581.9,3.2078]
[1756389791485,0.4489,4582.8,4582.4,1.57123995]
[1756389791684,0.4489,4582.8,4582.5,20.832]
[1756389791880,0.4489,4583.4,4582.5,20.832]
[1756389792090,0.46990659,4583.3,4582.5,20.832]
[1756389792285,0.46990659,4583.3,4581.9,3.2078]
[1756389792286,3.2078,4583.0,4582.3,1.57123995]
[1756389792486,3.2078,4583.0,4582.4,22.40323995]
[1756389792690,3.2078,4583.0,4582.5,1.57123995]
[1756389792891,0.4489,4583.3,4582.5,1.57123995]
[1756389793398,3.2078,4583.0,4582.6,1.57123995]
[1756389793597,0.4489,4582.9,4582.7,20.831]
[1756389793788,3.2078,4583.0,4582.6,20.831]
[1756389794090,3.2078,4583.5,4582.6,20.831]
[1756389794292,0.46992286,4583.4,4582.6,22.40223995]
[1756389794495,3.6567,4583.5,4582.7,0.39274]
[1756389794792,3.2078,4583.5,4583.0,1.57123995]
[1756389795686,3.2078,4583.5,4583.1,20.829]
[1756389795886,3.2078,4583.5,4583.2,20.829]
[1756389796095,3.2078,4583.5,4582.5,33.41240607]
[1756389796096,0.4489,4583.4,4582.8,1.57123995]
[1756389796389,0.4489,4582.9,4582.6,20.828]
[1756389797196,0.4489,4583.4,4582.7,20.827]
[1756389797396,3.2078,4583.5,4582.7,20.827]
[1756389797397,0.4489,4583.2,4583.1,1.17888249]
[1756389797988,3.6567,4583.5,4582.8,1.57123995]
[1756389798190,0.4489,4583.4,4583.2,1.17881777]
[1756389798387,0.4489,4583.4,4583.3,1.17881777]
[1756389798597,3.2078,4583.5,4583.3,20.826]
[1756389798900,0.4489,4584.0,4583.3,20.826]
[1756389799097,0.4489,4584.2,4583.6,1.57149773]
[1756389799395,0.4489,4584.2,4583.9,1.17865066]
[1756389799595,0.4489,4584.0,4583.9,1.17865066]
[1756389799795,0.4489,4585.2,4584.1,0.39263]
[1756389799994,3.2078,4585.3,4585.0,1.17845915]
[1756389800192,0.4489,4585.1,4585.0,1.17845915]
[1756389800594,0.4489,4585.2,4585.0,1.17845915]
[1756389800789,3.2078,4585.3,4584.8,1.17845915]
[1756389800790,0.45300224,4585.1,4584.8,1.17845915]
[1756389800992,0.4489,4584.9,4584.6,1.17845915]
[1756389801296,3.2078,4584.7,4584.3,0.69195915]
[1756389801499,0.90186331,4584.6,4583.7,20.82927886]
[1756389801694,2.724689,4587.0,4583.6,0.464]
[1756389801695,3.2078,4584.3,4583.8,1.57127886]